[Event "Titled Tuesday Blitz May 9 Early 2023"]
[White "Panda Sambit"]
[Black "Mike24147"]
[WhiteFideId "25091794"]
[WhiteElo "2272"]
[BlackElo "2322"]
[Result "0-1"]
[Round "08"]
[TimeControl "180+2"]
[Date "2023.05.09"]
[WhiteClock "0:00:00"]
[BlackClock "0:00:52"]

1. b3 {[%clk 0:02:56]}  e5 {[%clk 0:02:57]} 2. Bb2 {[%clk 0:02:57]}  Nc6 {[%clk 0:02:57]} 3. e3 {[%clk 0:02:57]}  g6 {[%clk 0:02:57]} 4. f4 {[%clk 0:02:55]}  Bg7 {[%clk 0:02:57]} 5. Nf3 {[%clk 0:02:54]}  d6 {[%clk 0:02:54]} 6. Bb5 {[%clk 0:02:54]}  Ne7 {[%clk 0:02:55]} 7. fxe5 {[%clk 0:02:51]}  O-O {[%clk 0:02:55]} 8. d4 {[%clk 0:01:48]}  dxe5 {[%clk 0:02:54]} 9. dxe5 {[%clk 0:01:45]}  Qxd1+ {[%clk 0:02:51]} 10. Kxd1 {[%clk 0:01:46]}  Bg4 {[%clk 0:02:49]} 11. Be2 {[%clk 0:01:23]}  Nf5 {[%clk 0:02:35]} 12. h3 {[%clk 0:00:55]}  Bxf3 {[%clk 0:01:54]} 13. Bxf3 {[%clk 0:00:46]}  Nxe3+ {[%clk 0:01:33]} 14. Kc1 {[%clk 0:00:30]}  Nxe5 {[%clk 0:01:26]} 15. Bxb7 {[%clk 0:00:20]}  Rab8 {[%clk 0:01:22]} 16. Bf3 {[%clk 0:00:16]}  Nxf3 {[%clk 0:01:10]} 17. gxf3 {[%clk 0:00:17]}  Bh6 {[%clk 0:01:04]} 18. Nd2 {[%clk 0:00:09]}  Rfd8 {[%clk 0:01:05]} 19. Bc3 {[%clk 0:00:08]}  Nd5 {[%clk 0:00:59]} 20. Ba5 {[%clk 0:00:04]}  Rb5 {[%clk 0:01:00]} 21. Kb2 {[%clk 0:00:01]}  Rxa5 {[%clk 0:00:58]} 22. Nc4 {[%clk 0:00:02]}  Rc5 {[%clk 0:00:56]} 23. Rad1 {[%clk 0:00:00]}  Rb8 {[%clk 0:00:52]} 0-1


[Site "https://www.chess.com"]

[Event "Titled Tuesday Blitz May 9 Early 2023"]
[White "Szente Varga, Fruzsina"]
[Black "koncheto"]
[WhiteFideId "712264"]
[WhiteElo "1994"]
[BlackElo "2464"]
[Result "1-0"]
[Round "08"]
[TimeControl "180+2"]
[Date "2023.05.09"]
[WhiteClock "0:00:08"]
[BlackClock "0:00:52"]

1. e4 {[%clk 0:03:00]}  e5 {[%clk 0:02:59]} 2. Nf3 {[%clk 0:02:51]}  Nf6 {[%clk 0:02:59]} 3. Nc3 {[%clk 0:02:44]}  Nc6 {[%clk 0:02:57]} 4. d4 {[%clk 0:02:43]}  exd4 {[%clk 0:02:58]} 5. Nd5 {[%clk 0:02:41]}  Bb4+ {[%clk 0:02:59]} 6. Nxb4 {[%clk 0:02:20]}  Nxb4 {[%clk 0:02:59]} 7. e5 {[%clk 0:02:19]}  Nc6 {[%clk 0:02:38]} 8. exf6 {[%clk 0:02:12]}  Qxf6 {[%clk 0:02:39]} 9. Bg5 {[%clk 0:02:01]}  Qg6 {[%clk 0:02:33]} 10. Bd3 {[%clk 0:02:00]}  f5 {[%clk 0:02:22]} 11. Qe2+ {[%clk 0:01:48]}  Kf8 {[%clk 0:02:06]} 12. O-O-O {[%clk 0:01:31]}  d6 {[%clk 0:01:58]} 13. h4 {[%clk 0:01:21]}  Bd7 {[%clk 0:01:45]} 14. h5 {[%clk 0:01:16]}  Qf7 {[%clk 0:01:44]} 15. Bc4 {[%clk 0:01:12]}  Re8 {[%clk 0:01:44]} 16. Qd3 {[%clk 0:00:54]}  d5 {[%clk 0:01:32]} 17. Bb3 {[%clk 0:00:54]}  f4 {[%clk 0:01:31]} 18. h6 {[%clk 0:00:41]}  g6 {[%clk 0:01:24]} 19. Rhe1 {[%clk 0:00:34]}  Bf5 {[%clk 0:01:23]} 20. Qb5 {[%clk 0:00:29]}  Be4 {[%clk 0:01:21]} 21. Qxb7 {[%clk 0:00:16]}  Qd7 {[%clk 0:01:20]} 22. Nxd4 {[%clk 0:00:15]}  Ne5 {[%clk 0:01:17]} 23. Bf6 {[%clk 0:00:13]}  Rg8 {[%clk 0:01:17]} 24. Bxe5 {[%clk 0:00:13]}  Rxe5 {[%clk 0:01:18]} 25. Qb4+ {[%clk 0:00:13]}  Kf7 {[%clk 0:01:11]} 26. f3 {[%clk 0:00:13]}  c5 {[%clk 0:01:08]} 27. Qxc5 {[%clk 0:00:13]}  Rc8 {[%clk 0:01:09]} 28. Qa5 {[%clk 0:00:10]}  Kf6 {[%clk 0:01:07]} 29. fxe4 {[%clk 0:00:10]}  dxe4 {[%clk 0:01:08]} 30. Qa6+ {[%clk 0:00:09]}  Kg5 {[%clk 0:01:05]} 31. Qe2 {[%clk 0:00:09]}  Kxh6 {[%clk 0:01:01]} 32. Nf3 {[%clk 0:00:08]}  exf3 {[%clk 0:00:57]} 33. Qxe5 {[%clk 0:00:08]}  Qg4 {[%clk 0:00:55]} 34. gxf3 {[%clk 0:00:07]}  Qh5 {[%clk 0:00:55]} 35. Rh1 {[%clk 0:00:07]}  Rd8 {[%clk 0:00:52]} 36. Rxh5+ {[%clk 0:00:08]}  gxh5 {[%clk 0:00:52]} 37. Qf6# {[%clk 0:00:08]} 1-0


[Site "https://www.chess.com"]

[Event "Titled Tuesday Blitz May 9 Early 2023"]
[White "Orzech, Dominik"]
[Black "Shukhman, Anna"]
[WhiteFideId "1115065"]
[BlackFideId "54180058"]
[WhiteElo "2260"]
[BlackElo "2235"]
[Result "1-0"]
[Round "08"]
[TimeControl "180+2"]
[Date "2023.05.09"]
[WhiteClock "0:00:26"]
[BlackClock "0:00:41"]

1. d4 {[%clk 0:03:00]}  Nf6 {[%clk 0:02:59]} 2. Nf3 {[%clk 0:02:54]}  g6 {[%clk 0:02:59]} 3. c4 {[%clk 0:02:52]}  Bg7 {[%clk 0:02:59]} 4. Nc3 {[%clk 0:02:47]}  O-O {[%clk 0:03:00]} 5. g3 {[%clk 0:02:45]}  d5 {[%clk 0:02:59]} 6. cxd5 {[%clk 0:02:04]}  Nxd5 {[%clk 0:03:00]} 7. Bg2 {[%clk 0:02:05]}  c5 {[%clk 0:02:59]} 8. Nxd5 {[%clk 0:01:52]}  Qxd5 {[%clk 0:02:56]} 9. Be3 {[%clk 0:01:40]}  cxd4 {[%clk 0:02:45]} 10. O-O {[%clk 0:01:35]}  Qh5 {[%clk 0:02:22]} 11. Nxd4 {[%clk 0:01:30]}  Bh3 {[%clk 0:02:19]} 12. Bxb7 {[%clk 0:01:18]}  Bxf1 {[%clk 0:02:13]} 13. Qxf1 {[%clk 0:01:02]}  Rd8 {[%clk 0:02:02]} 14. Bf3 {[%clk 0:00:53]}  Qe5 {[%clk 0:01:39]} 15. Bxa8 {[%clk 0:00:52]}  Rxd4 {[%clk 0:01:36]} 16. Bxd4 {[%clk 0:00:53]}  Qxd4 {[%clk 0:01:36]} 17. Rc1 {[%clk 0:00:40]}  Be5 {[%clk 0:01:30]} 18. b3 {[%clk 0:00:34]}  Na6 {[%clk 0:01:27]} 19. Qd1 {[%clk 0:00:33]}  Qb4 {[%clk 0:01:02]} 20. Rc8+ {[%clk 0:00:30]}  Kg7 {[%clk 0:01:02]} 21. Qd8 {[%clk 0:00:30]}  Qe1+ {[%clk 0:01:00]} 22. Kg2 {[%clk 0:00:30]}  Qxe2 {[%clk 0:00:53]} 23. Qxe7 {[%clk 0:00:28]}  Nb8 {[%clk 0:00:41]} 24. Rxb8 {[%clk 0:00:26]} 1-0


[Site "https://www.chess.com"]

[Event "Titled Tuesday Blitz May 9 Early 2023"]
[White "Samaganova, Aleksandra"]
[Black "Koridze, Lile"]
[WhiteFideId "13800221"]
[BlackFideId "13612514"]
[WhiteElo "1858"]
[BlackElo "2047"]
[Result "0-1"]
[Round "08"]
[TimeControl "180+2"]
[Date "2023.05.09"]
[WhiteClock "0:00:00"]
[BlackClock "0:00:07"]

1. c4 {[%clk 0:03:00]}  e5 {[%clk 0:02:59]} 2. Nc3 {[%clk 0:02:58]}  Nf6 {[%clk 0:02:59]} 3. Nf3 {[%clk 0:02:56]}  Nc6 {[%clk 0:02:59]} 4. a3 {[%clk 0:02:54]}  g6 {[%clk 0:02:58]} 5. e3 {[%clk 0:02:52]}  Bg7 {[%clk 0:02:57]} 6. b4 {[%clk 0:02:46]}  d6 {[%clk 0:02:29]} 7. b5 {[%clk 0:02:40]}  Ne7 {[%clk 0:02:29]} 8. Be2 {[%clk 0:02:40]}  O-O {[%clk 0:02:28]} 9. O-O {[%clk 0:02:36]}  c6 {[%clk 0:02:28]} 10. d4 {[%clk 0:02:23]}  exd4 {[%clk 0:02:28]} 11. Nxd4 {[%clk 0:02:19]}  Qc7 {[%clk 0:02:24]} 12. Bb2 {[%clk 0:02:11]}  d5 {[%clk 0:02:15]} 13. cxd5 {[%clk 0:02:01]}  Nfxd5 {[%clk 0:02:13]} 14. Qb3 {[%clk 0:01:46]}  Rd8 {[%clk 0:01:27]} 15. Rfd1 {[%clk 0:01:37]}  c5 {[%clk 0:01:20]} 16. Nf3 {[%clk 0:01:21]}  Be6 {[%clk 0:01:17]} 17. Bc4 {[%clk 0:01:17]}  Nxc3 {[%clk 0:00:47]} 18. Bxc3 {[%clk 0:01:06]}  Rxd1+ {[%clk 0:00:43]} 19. Rxd1 {[%clk 0:01:05]}  Bxc4 {[%clk 0:00:32]} 20. Qxc4 {[%clk 0:01:04]}  Bxc3 {[%clk 0:00:32]} 21. Qxc3 {[%clk 0:01:05]}  b6 {[%clk 0:00:32]} 22. Ng5 {[%clk 0:00:44]}  Rd8 {[%clk 0:00:29]} 23. Rc1 {[%clk 0:00:38]}  Qd7 {[%clk 0:00:20]} 24. h3 {[%clk 0:00:31]}  Qf5 {[%clk 0:00:20]} 25. Nf3 {[%clk 0:00:23]}  Rd3 {[%clk 0:00:19]} 26. Qb2 {[%clk 0:00:18]}  Qd5 {[%clk 0:00:17]} 27. Ne5 {[%clk 0:00:13]}  Rd1+ {[%clk 0:00:16]} 28. Rxd1 {[%clk 0:00:11]}  Qxd1+ {[%clk 0:00:17]} 29. Kh2 {[%clk 0:00:12]}  Qd6 {[%clk 0:00:18]} 30. g3 {[%clk 0:00:11]}  Nd5 {[%clk 0:00:14]} 31. Ng4 {[%clk 0:00:11]}  f6 {[%clk 0:00:10]} 32. e4 {[%clk 0:00:04]}  h5 {[%clk 0:00:10]} 33. exd5 {[%clk 0:00:03]}  hxg4 {[%clk 0:00:10]} 34. Qd2 {[%clk 0:00:02]}  gxh3 {[%clk 0:00:08]} 35. Kxh3 {[%clk 0:00:03]}  Kg7 {[%clk 0:00:08]} 36. Qd3 {[%clk 0:00:03]}  g5 {[%clk 0:00:07]} 37. Qe4 {[%clk 0:00:02]}  Kf7 {[%clk 0:00:07]} 38. Qh7+ {[%clk 0:00:01]}  Kf8 {[%clk 0:00:07]} 39. Qe4 {[%clk 0:00:01]}  Qd7+ {[%clk 0:00:07]} 40. Kg2 {[%clk 0:00:00]}  Qxb5 {[%clk 0:00:07]} 0-1


[Site "https://www.chess.com"]

[Event "Titled Tuesday Blitz May 9 Early 2023"]
[White "Redzisz, Michal"]
[Black "Sai Han Thiha"]
[WhiteFideId "21816107"]
[BlackFideId "13012290"]
[WhiteElo "2175"]
[BlackElo "1954"]
[Result "1/2-1/2"]
[Round "08"]
[TimeControl "180+2"]
[Date "2023.05.09"]
[WhiteClock "0:00:17"]
[BlackClock "0:00:10"]

1. e4 {[%clk 0:03:00]}  c6 {[%clk 0:03:00]} 2. c4 {[%clk 0:03:00]}  d5 {[%clk 0:03:01]} 3. cxd5 {[%clk 0:03:01]}  cxd5 {[%clk 0:03:01]} 4. exd5 {[%clk 0:03:01]}  Nf6 {[%clk 0:03:02]} 5. Qa4+ {[%clk 0:03:01]}  Nbd7 {[%clk 0:03:02]} 6. Nc3 {[%clk 0:03:01]}  g6 {[%clk 0:03:01]} 7. g3 {[%clk 0:03:02]}  a6 {[%clk 0:02:57]} 8. Bg2 {[%clk 0:03:01]}  b5 {[%clk 0:02:57]} 9. Qb3 {[%clk 0:03:01]}  Bb7 {[%clk 0:02:57]} 10. Nge2 {[%clk 0:03:01]}  Nc5 {[%clk 0:02:56]} 11. Qc2 {[%clk 0:02:56]}  Nxd5 {[%clk 0:02:51]} 12. Nxd5 {[%clk 0:02:26]}  Bxd5 {[%clk 0:02:52]} 13. Bxd5 {[%clk 0:01:44]}  Qxd5 {[%clk 0:02:53]} 14. O-O {[%clk 0:01:45]}  Bg7 {[%clk 0:02:21]} 15. d4 {[%clk 0:01:41]}  Ne6 {[%clk 0:02:15]} 16. Be3 {[%clk 0:01:35]}  O-O {[%clk 0:02:11]} 17. Qb3 {[%clk 0:01:25]}  Rfd8 {[%clk 0:02:05]} 18. Rfd1 {[%clk 0:01:17]}  Qf3 {[%clk 0:01:45]} 19. Rd2 {[%clk 0:01:01]}  Rd5 {[%clk 0:01:26]} 20. Qd1 {[%clk 0:00:34]}  b4 {[%clk 0:01:13]} 21. Nf4 {[%clk 0:00:32]}  Qxd1+ {[%clk 0:01:11]} 22. Raxd1 {[%clk 0:00:33]}  Nxf4 {[%clk 0:01:10]} 23. Bxf4 {[%clk 0:00:34]}  Rad8 {[%clk 0:01:08]} 24. Be3 {[%clk 0:00:34]}  Rc8 {[%clk 0:01:00]} 25. Kg2 {[%clk 0:00:32]}  f5 {[%clk 0:00:53]} 26. f4 {[%clk 0:00:31]}  Ra5 {[%clk 0:00:52]} 27. b3 {[%clk 0:00:30]}  Rd5 {[%clk 0:00:35]} 28. Kf3 {[%clk 0:00:30]}  Kf7 {[%clk 0:00:35]} 29. h3 {[%clk 0:00:29]}  Ke6 {[%clk 0:00:32]} 30. g4 {[%clk 0:00:30]}  Rcd8 {[%clk 0:00:27]} 31. Rd3 {[%clk 0:00:29]}  R8d6 {[%clk 0:00:26]} 32. R1d2 {[%clk 0:00:28]}  Ra5 {[%clk 0:00:25]} 33. Rc2 {[%clk 0:00:23]}  Ra3 {[%clk 0:00:14]} 34. Rdd2 {[%clk 0:00:14]}  a5 {[%clk 0:00:12]} 35. Rc5 {[%clk 0:00:10]}  a4 {[%clk 0:00:11]} 36. d5+ {[%clk 0:00:10]}  Kf7 {[%clk 0:00:10]} 37. bxa4 {[%clk 0:00:10]}  Rxa4 {[%clk 0:00:08]} 38. gxf5 {[%clk 0:00:10]}  gxf5 {[%clk 0:00:08]} 39. Rc6 {[%clk 0:00:11]}  Bc3 {[%clk 0:00:07]} 40. Rg2 {[%clk 0:00:07]}  Rxd5 {[%clk 0:00:02]} 41. Rh6 {[%clk 0:00:08]}  Bf6 {[%clk 0:00:02]} 42. Rxh7+ {[%clk 0:00:08]}  Ke6 {[%clk 0:00:02]} 43. h4 {[%clk 0:00:06]}  Ra3 {[%clk 0:00:03]} 44. Re2 {[%clk 0:00:06]}  Rdd3 {[%clk 0:00:03]} 45. Kf2 {[%clk 0:00:07]}  Kd5 {[%clk 0:00:04]} 46. Rh6 {[%clk 0:00:06]}  Rxe3 {[%clk 0:00:04]} 47. Rxe3 {[%clk 0:00:06]}  Bd4 {[%clk 0:00:05]} 48. Re6 {[%clk 0:00:07]}  Rxa2+ {[%clk 0:00:04]} 49. Kf3 {[%clk 0:00:07]}  Bxe3 {[%clk 0:00:05]} 50. Rxe3 {[%clk 0:00:08]}  Rh2 {[%clk 0:00:05]} 51. Re5+ {[%clk 0:00:09]}  Kd4 {[%clk 0:00:05]} 52. Rxf5 {[%clk 0:00:09]}  Rxh4 {[%clk 0:00:06]} 53. Rb5 {[%clk 0:00:10]}  Kc4 {[%clk 0:00:06]} 54. Rb7 {[%clk 0:00:10]}  b3 {[%clk 0:00:06]} 55. Rxe7 {[%clk 0:00:11]}  b2 {[%clk 0:00:07]} 56. Rc7+ {[%clk 0:00:11]}  Kb3 {[%clk 0:00:06]} 57. Rb7+ {[%clk 0:00:12]}  Kc2 {[%clk 0:00:07]} 58. Ke4 {[%clk 0:00:12]}  b1=Q {[%clk 0:00:06]} 59. Rxb1 {[%clk 0:00:13]}  Kxb1 {[%clk 0:00:07]} 60. Ke5 {[%clk 0:00:14]}  Kc2 {[%clk 0:00:08]} 61. f5 {[%clk 0:00:14]}  Kd3 {[%clk 0:00:08]} 62. f6 {[%clk 0:00:15]}  Re4+ {[%clk 0:00:09]} 63. Kd6 {[%clk 0:00:15]}  Rf4 {[%clk 0:00:08]} 64. Ke7 {[%clk 0:00:15]}  Ke4 {[%clk 0:00:09]} 65. f7 {[%clk 0:00:16]}  Ke5 {[%clk 0:00:09]} 66. f8=Q {[%clk 0:00:16]}  Rxf8 {[%clk 0:00:10]} 67. Kxf8 {[%clk 0:00:17]} 1/2-1/2


[Site "https://www.chess.com"]

[Event "Titled Tuesday Blitz May 9 Early 2023"]
[White "Qiao, Cindy"]
[Black "Yonal, Timur"]
[WhiteFideId "2620243"]
[BlackFideId "44115725"]
[WhiteElo "1777"]
[BlackElo "1966"]
[Result "0-1"]
[Round "08"]
[TimeControl "180+2"]
[Date "2023.05.09"]
[WhiteClock "0:00:16"]
[BlackClock "0:00:05"]

1. d4 {[%clk 0:03:00]}  d5 {[%clk 0:02:50]} 2. Bf4 {[%clk 0:03:00]}  Nf6 {[%clk 0:02:49]} 3. e3 {[%clk 0:03:01]}  c5 {[%clk 0:02:48]} 4. c3 {[%clk 0:03:01]}  Nc6 {[%clk 0:02:40]} 5. Nf3 {[%clk 0:03:00]}  Qb6 {[%clk 0:02:38]} 6. Qc2 {[%clk 0:02:59]}  Bf5 {[%clk 0:02:32]} 7. dxc5 {[%clk 0:02:59]}  Bxc2 {[%clk 0:02:29]} 8. cxb6 {[%clk 0:02:59]}  axb6 {[%clk 0:02:30]} 9. Na3 {[%clk 0:02:59]}  e5 {[%clk 0:02:16]} 10. Nxc2 {[%clk 0:02:53]}  exf4 {[%clk 0:02:16]} 11. exf4 {[%clk 0:02:54]}  Bd6 {[%clk 0:02:13]} 12. g3 {[%clk 0:02:54]}  O-O {[%clk 0:02:13]} 13. Bg2 {[%clk 0:02:49]}  Rfe8+ {[%clk 0:02:03]} 14. Kf1 {[%clk 0:02:32]}  Na5 {[%clk 0:02:02]} 15. Nd2 {[%clk 0:02:24]}  Ne4 {[%clk 0:01:59]} 16. Nxe4 {[%clk 0:02:17]}  dxe4 {[%clk 0:02:00]} 17. Ne3 {[%clk 0:02:17]}  Bc5 {[%clk 0:01:54]} 18. Ke2 {[%clk 0:01:49]}  Bxe3 {[%clk 0:01:36]} 19. fxe3 {[%clk 0:01:49]}  Nc4 {[%clk 0:01:35]} 20. b3 {[%clk 0:01:46]}  Nd6 {[%clk 0:01:17]} 21. c4 {[%clk 0:01:45]}  Ra3 {[%clk 0:01:07]} 22. Rhd1 {[%clk 0:01:42]}  Nf5 {[%clk 0:01:06]} 23. Rd2 {[%clk 0:01:40]}  h5 {[%clk 0:01:04]} 24. Rad1 {[%clk 0:01:31]}  Kh7 {[%clk 0:01:03]} 25. Rc1 {[%clk 0:01:22]}  Nh6 {[%clk 0:00:49]} 26. h3 {[%clk 0:01:15]}  f5 {[%clk 0:00:48]} 27. c5 {[%clk 0:01:04]}  Rea8 {[%clk 0:00:39]} 28. Rcc2 {[%clk 0:00:52]}  bxc5 {[%clk 0:00:38]} 29. Rxc5 {[%clk 0:00:52]}  Rxa2 {[%clk 0:00:38]} 30. Rd5 {[%clk 0:00:48]}  R8a3 {[%clk 0:00:19]} 31. b4 {[%clk 0:00:48]}  Rxd2+ {[%clk 0:00:18]} 32. Rxd2 {[%clk 0:00:45]}  Rb3 {[%clk 0:00:18]} 33. Rd4 {[%clk 0:00:43]}  Rb2+ {[%clk 0:00:19]} 34. Kf1 {[%clk 0:00:44]}  Nf7 {[%clk 0:00:16]} 35. g4 {[%clk 0:00:43]}  hxg4 {[%clk 0:00:16]} 36. hxg4 {[%clk 0:00:44]}  g6 {[%clk 0:00:17]} 37. gxf5 {[%clk 0:00:44]}  gxf5 {[%clk 0:00:18]} 38. Bh3 {[%clk 0:00:44]}  Kg6 {[%clk 0:00:17]} 39. Kg1 {[%clk 0:00:40]}  Nh6 {[%clk 0:00:17]} 40. Bf1 {[%clk 0:00:40]}  Rb1 {[%clk 0:00:17]} 41. Kf2 {[%clk 0:00:40]}  Ng4+ {[%clk 0:00:17]} 42. Ke2 {[%clk 0:00:39]}  Rb2+ {[%clk 0:00:17]} 43. Ke1 {[%clk 0:00:39]}  Nxe3 {[%clk 0:00:16]} 44. Rd6+ {[%clk 0:00:33]}  Kg7 {[%clk 0:00:13]} 45. Rd7+ {[%clk 0:00:28]}  Kf6 {[%clk 0:00:12]} 46. Bh3 {[%clk 0:00:26]}  Nc2+ {[%clk 0:00:09]} 47. Kd2 {[%clk 0:00:23]}  Nxb4+ {[%clk 0:00:09]} 48. Kc1 {[%clk 0:00:24]}  Rc2+ {[%clk 0:00:09]} 49. Kb1 {[%clk 0:00:24]}  Rc3 {[%clk 0:00:09]} 50. Bf1 {[%clk 0:00:23]}  Rf3 {[%clk 0:00:08]} 51. Bb5 {[%clk 0:00:22]}  Rxf4 {[%clk 0:00:08]} 52. Rxb7 {[%clk 0:00:22]}  Nd5 {[%clk 0:00:09]} 53. Kc2 {[%clk 0:00:19]}  Rf2+ {[%clk 0:00:09]} 54. Kb3 {[%clk 0:00:18]}  e3 {[%clk 0:00:08]} 55. Rd7 {[%clk 0:00:16]}  Nf4 {[%clk 0:00:08]} 56. Rd6+ {[%clk 0:00:16]}  Ke5 {[%clk 0:00:07]} 57. Rd8 {[%clk 0:00:16]}  e2 {[%clk 0:00:06]} 58. Re8+ {[%clk 0:00:16]}  Ne6 {[%clk 0:00:06]} 59. Bxe2 {[%clk 0:00:15]}  Rxe2 {[%clk 0:00:06]} 60. Kc3 {[%clk 0:00:16]}  f4 {[%clk 0:00:06]} 61. Rh8 {[%clk 0:00:16]}  f3 {[%clk 0:00:06]} 62. Rh5+ {[%clk 0:00:17]}  Kf4 {[%clk 0:00:06]} 63. Rh6 {[%clk 0:00:16]}  f2 {[%clk 0:00:06]} 64. Rf6+ {[%clk 0:00:17]}  Kg3 {[%clk 0:00:05]} 65. Rg6+ {[%clk 0:00:17]}  Kh2 {[%clk 0:00:05]} 66. Rh6+ {[%clk 0:00:17]}  Kg1 {[%clk 0:00:05]} 67. Rg6+ {[%clk 0:00:18]}  Kf1 {[%clk 0:00:05]} 68. Kd3 {[%clk 0:00:16]}  Nf4+ {[%clk 0:00:05]} 0-1


[Site "https://www.chess.com"]

[Event "Titled Tuesday Blitz May 9 Early 2023"]
[White "Shubenkova, Veronika"]
[Black "Schut, Han"]
[WhiteFideId "44124040"]
[BlackFideId "1005561"]
[WhiteElo "2060"]
[BlackElo "2024"]
[Result "0-1"]
[Round "08"]
[TimeControl "180+2"]
[Date "2023.05.09"]
[WhiteClock "0:01:23"]
[BlackClock "0:01:10"]

1. d4 {[%clk 0:03:00]}  Nf6 {[%clk 0:02:55]} 2. c4 {[%clk 0:02:59]}  g6 {[%clk 0:02:54]} 3. Nc3 {[%clk 0:02:59]}  d5 {[%clk 0:02:55]} 4. cxd5 {[%clk 0:02:56]}  Nxd5 {[%clk 0:02:55]} 5. Nf3 {[%clk 0:02:56]}  Bg7 {[%clk 0:02:55]} 6. e3 {[%clk 0:02:55]}  c5 {[%clk 0:02:52]} 7. Be2 {[%clk 0:02:55]}  cxd4 {[%clk 0:02:52]} 8. Nxd4 {[%clk 0:02:56]}  O-O {[%clk 0:02:47]} 9. O-O {[%clk 0:02:55]}  Nc6 {[%clk 0:02:47]} 10. Nxc6 {[%clk 0:02:52]}  bxc6 {[%clk 0:02:48]} 11. Nxd5 {[%clk 0:02:52]}  cxd5 {[%clk 0:02:47]} 12. Rb1 {[%clk 0:02:52]}  Rb8 {[%clk 0:02:40]} 13. b4 {[%clk 0:02:49]}  Bf5 {[%clk 0:02:27]} 14. Bd3 {[%clk 0:02:49]}  Bxd3 {[%clk 0:02:20]} 15. Qxd3 {[%clk 0:02:50]}  e6 {[%clk 0:02:19]} 16. a4 {[%clk 0:02:49]}  Qd7 {[%clk 0:02:11]} 17. b5 {[%clk 0:02:47]}  Rfc8 {[%clk 0:02:08]} 18. Bd2 {[%clk 0:02:47]}  a6 {[%clk 0:01:53]} 19. bxa6 {[%clk 0:02:25]}  Qxa4 {[%clk 0:01:52]} 20. Rb7 {[%clk 0:02:13]}  Ra8 {[%clk 0:01:41]} 21. Rb6 {[%clk 0:02:11]}  Rc4 {[%clk 0:01:35]} 22. Rfb1 {[%clk 0:02:01]}  h5 {[%clk 0:01:20]} 23. g3 {[%clk 0:01:49]}  Rxa6 {[%clk 0:01:15]} 24. Rxa6 {[%clk 0:01:40]}  Qxa6 {[%clk 0:01:15]} 25. e4 {[%clk 0:01:23]}  Rc1+ {[%clk 0:01:10]} 0-1


[Site "https://www.chess.com"]

[Event "Titled Tuesday Blitz May 9 Early 2023"]
[White "Rios Escobar, Adan"]
[Black "Kejzar, Petra"]
[WhiteFideId "3403645"]
[BlackFideId "14610213"]
[WhiteElo "2415"]
[BlackElo "2089"]
[Result "1-0"]
[Round "08"]
[TimeControl "180+2"]
[Date "2023.05.09"]
[WhiteClock "0:00:06"]
[BlackClock "0:00:14"]

1. d4 {[%clk 0:02:52]}  d5 {[%clk 0:02:56]} 2. g3 {[%clk 0:02:52]}  Nf6 {[%clk 0:02:56]} 3. Nf3 {[%clk 0:02:50]}  c6 {[%clk 0:02:57]} 4. c4 {[%clk 0:02:49]}  Bf5 {[%clk 0:02:57]} 5. Nc3 {[%clk 0:02:49]}  e6 {[%clk 0:02:58]} 6. Nh4 {[%clk 0:02:49]}  Bg6 {[%clk 0:02:58]} 7. Qb3 {[%clk 0:02:46]}  Qb6 {[%clk 0:02:57]} 8. Nxg6 {[%clk 0:02:44]}  hxg6 {[%clk 0:02:57]} 9. c5 {[%clk 0:02:45]}  Qxb3 {[%clk 0:02:57]} 10. axb3 {[%clk 0:02:45]}  Be7 {[%clk 0:02:56]} 11. b4 {[%clk 0:02:44]}  O-O {[%clk 0:02:50]} 12. e3 {[%clk 0:02:29]}  a6 {[%clk 0:02:47]} 13. b5 {[%clk 0:02:28]}  cxb5 {[%clk 0:02:47]} 14. Bxb5 {[%clk 0:02:27]}  Nbd7 {[%clk 0:02:39]} 15. Be2 {[%clk 0:02:20]}  e5 {[%clk 0:02:28]} 16. O-O {[%clk 0:02:20]}  Rfe8 {[%clk 0:02:25]} 17. Bd2 {[%clk 0:02:14]}  Bf8 {[%clk 0:02:11]} 18. Rfb1 {[%clk 0:02:10]}  Rac8 {[%clk 0:02:07]} 19. b4 {[%clk 0:02:10]}  exd4 {[%clk 0:02:03]} 20. exd4 {[%clk 0:02:09]}  Ne4 {[%clk 0:02:00]} 21. Nxe4 {[%clk 0:02:08]}  Rxe4 {[%clk 0:02:01]} 22. Be3 {[%clk 0:02:04]}  Nf6 {[%clk 0:02:00]} 23. b5 {[%clk 0:02:00]}  axb5 {[%clk 0:01:49]} 24. Rxb5 {[%clk 0:01:59]}  Bxc5 {[%clk 0:01:48]} 25. Rxc5 {[%clk 0:01:39]}  Rxc5 {[%clk 0:01:47]} 26. dxc5 {[%clk 0:01:38]}  d4 {[%clk 0:01:48]} 27. Bf3 {[%clk 0:01:37]}  dxe3 {[%clk 0:01:47]} 28. Bxe4 {[%clk 0:01:37]}  exf2+ {[%clk 0:01:47]} 29. Kg2 {[%clk 0:01:28]}  Nxe4 {[%clk 0:01:48]} 30. Ra8+ {[%clk 0:00:32]}  Kh7 {[%clk 0:01:48]} 31. Re8 {[%clk 0:00:29]}  Nxc5 {[%clk 0:01:47]} 32. Kxf2 {[%clk 0:00:29]}  f5 {[%clk 0:01:45]} 33. Rc8 {[%clk 0:00:23]}  Ne4+ {[%clk 0:01:45]} 34. Ke3 {[%clk 0:00:21]}  Kh6 {[%clk 0:01:42]} 35. h4 {[%clk 0:00:13]}  Kh5 {[%clk 0:01:40]} 36. Kf4 {[%clk 0:00:12]}  g5+ {[%clk 0:01:35]} 37. hxg5 {[%clk 0:00:10]}  Nxg5 {[%clk 0:01:28]} 38. Kxf5 {[%clk 0:00:10]}  g6+ {[%clk 0:01:21]} 39. Kf4 {[%clk 0:00:06]}  Ne6+ {[%clk 0:01:19]} 40. Kf3 {[%clk 0:00:05]}  Nd4+ {[%clk 0:01:16]} 41. Ke4 {[%clk 0:00:05]}  Ne2 {[%clk 0:01:13]} 42. Kf3 {[%clk 0:00:02]}  Nd4+ {[%clk 0:01:13]} 43. Kg2 {[%clk 0:00:03]}  Kg5 {[%clk 0:01:08]} 44. Rc4 {[%clk 0:00:03]}  Nf5 {[%clk 0:01:06]} 45. Rb4 {[%clk 0:00:03]}  Nd6 {[%clk 0:01:03]} 46. Rb6 {[%clk 0:00:04]}  Nf5 {[%clk 0:01:02]} 47. Rxb7 {[%clk 0:00:04]}  Ne3+ {[%clk 0:01:02]} 48. Kf3 {[%clk 0:00:04]}  Nf5 {[%clk 0:01:03]} 49. Rb5 {[%clk 0:00:04]}  Kf6 {[%clk 0:00:58]} 50. Kf4 {[%clk 0:00:03]}  g5+ {[%clk 0:00:53]} 51. Kg4 {[%clk 0:00:02]}  Ne3+ {[%clk 0:00:50]} 52. Kf3 {[%clk 0:00:02]}  Nf5 {[%clk 0:00:49]} 53. Ra5 {[%clk 0:00:02]}  Kg6 {[%clk 0:00:40]} 54. Ra6+ {[%clk 0:00:02]}  Kf7 {[%clk 0:00:33]} 55. Kg4 {[%clk 0:00:03]}  Ng7 {[%clk 0:00:30]} 56. Kxg5 {[%clk 0:00:03]}  Ne6+ {[%clk 0:00:30]} 57. Kf5 {[%clk 0:00:03]}  Ng7+ {[%clk 0:00:30]} 58. Ke5 {[%clk 0:00:03]}  Kg8 {[%clk 0:00:29]} 59. g4 {[%clk 0:00:04]}  Kh7 {[%clk 0:00:29]} 60. Ra7 {[%clk 0:00:02]}  Kg6 {[%clk 0:00:29]} 61. Kf4 {[%clk 0:00:02]}  Ne6+ {[%clk 0:00:29]} 62. Kg3 {[%clk 0:00:02]}  Ng5 {[%clk 0:00:29]} 63. Ra6+ {[%clk 0:00:02]}  Kg7 {[%clk 0:00:29]} 64. Kh4 {[%clk 0:00:02]}  Nf3+ {[%clk 0:00:29]} 65. Kh5 {[%clk 0:00:03]}  Kf7 {[%clk 0:00:28]} 66. g5 {[%clk 0:00:03]}  Kg7 {[%clk 0:00:28]} 67. Ra7+ {[%clk 0:00:03]}  Kf8 {[%clk 0:00:26]} 68. Kh6 {[%clk 0:00:03]}  Nh4 {[%clk 0:00:24]} 69. g6 {[%clk 0:00:03]}  Nf5+ {[%clk 0:00:21]} 70. Kh7 {[%clk 0:00:03]}  Ke8 {[%clk 0:00:09]} 71. g7 {[%clk 0:00:03]}  Nxg7 {[%clk 0:00:09]} 72. Rxg7 {[%clk 0:00:04]}  Kd8 {[%clk 0:00:10]} 73. Kg6 {[%clk 0:00:05]}  Kc8 {[%clk 0:00:11]} 74. Kf6 {[%clk 0:00:05]}  Kd8 {[%clk 0:00:12]} 75. Ke6 {[%clk 0:00:06]}  Kc8 {[%clk 0:00:13]} 76. Kd6 {[%clk 0:00:06]}  Kb8 {[%clk 0:00:14]} 77. Kc6 {[%clk 0:00:07]}  Kc8 {[%clk 0:00:14]} 78. Rg8# {[%clk 0:00:06]} 1-0


[Site "https://www.chess.com"]